bitfinex-derivatives/quotes_BTCF0:USTF0_20250711
["timestamp","ask_amount","ask_price","bid_price","bid_amount"]
[1752243170954,1.44176014,118090.0,118080.0,0.0057937]
[1752243171261,1.27239213,118090.0,118080.0,0.0057937]
[1752243171446,1.82124101,118090.0,118080.0,0.0057937]
[1752243172751,0.67057891,118090.0,118080.0,0.0057937]
[1752243173157,1.21160101,118090.0,118080.0,0.0057937]
[1752243175356,0.91937891,118090.0,118080.0,0.0057937]
[1752243175657,1.46040101,118090.0,118080.0,0.0057937]
[1752243176257,1.52119213,118090.0,118080.0,0.0057937]
[1752243176648,0.98017003,118090.0,118080.0,0.1751454]
[1752243176851,0.98017003,118090.0,118080.0,0.5359454]
[1752243176852,0.1693373,118090.0,118080.0,0.5359454]
[1752243177151,0.28758191,118100.0,118090.0,0.1693373]
[1752243177359,0.28758191,118100.0,118090.0,0.2331373]
[1752243177558,0.230033,118100.0,118090.0,0.2331373]
[1752243177953,0.230033,118100.0,118080.0,0.5782684]
[1752243177954,0.1693373,118090.0,118080.0,0.5782684]
[1752243178149,0.7103594,118090.0,118080.0,0.6391684]
[1752243179152,0.1693373,118090.0,118080.0,0.6391684]
[1752243180261,0.1693373,118090.0,118080.0,0.2783684]
[1752243180957,0.1693373,118090.0,118080.0,0.2743684]
[1752243181262,0.1693373,118090.0,118080.0,0.2753684]
[1752243181559,0.1693373,118090.0,118080.0,0.6381684]
[1752243181956,0.1693373,118090.0,118080.0,0.0656937]
[1752243182161,1.0711594,118090.0,118080.0,0.0047937]
[1752243182361,1.1336594,118090.0,118080.0,0.0047937]
[1752243182552,1.7430994,118090.0,118080.0,0.0047937]
[1752243182756,1.1336594,118090.0,118080.0,0.0047937]
[1752243184058,1.1336594,118090.0,118080.0,0.0037937]
[1752243184363,1.1943629,118090.0,118080.0,0.0037937]
[1752243184666,1.1336594,118090.0,118080.0,0.0037937]
[1752243185053,1.1943629,118090.0,118080.0,0.0037937]
[1752243185256,1.1943629,118090.0,118080.0,0.0027937]
[1752243185457,0.1693517,118080.0,118070.0,0.0001]
[1752243185657,1.7459738,118080.0,118070.0,0.0001]
[1752243185864,1.9153578,118080.0,118070.0,0.0001]
[1752243186061,1.9760613,118080.0,118070.0,0.0001]
[1752243186260,1.3666613,118080.0,118070.0,0.0001]
[1752243186561,1.9760613,118080.0,118070.0,0.0001]
[1752243186959,1.9760613,118080.0,118070.0,0.0011]
[1752243187761,1.9760613,118080.0,118070.0,0.0031]
[1752243188266,1.8067173,118080.0,118070.0,0.0031]
[1752243189061,1.1972773,118080.0,118070.0,0.0031]
[1752243189265,1.8066773,118080.0,118070.0,0.0031]
[1752243189459,1.7459738,118080.0,118070.0,0.0031]
[1752243189664,1.82189451,118080.0,118070.0,0.0031]
[1752243190264,1.7459738,118080.0,118070.0,0.0031]
[1752243190463,1.82189451,118080.0,118070.0,0.0031]
[1752243191063,1.7459738,118080.0,118070.0,0.0031]
[1752243191265,1.82189451,118080.0,118070.0,0.0031]
[1752243191467,1.77434512,118080.0,118070.0,0.0031]
[1752243191665,0.83946302,118080.0,118070.0,0.234466]
[1752243191869,0.7787117,118080.0,118070.0,0.0651]
[1752243193064,1.3197338,118080.0,118070.0,0.0651]
[1752243193769,1.3197338,118080.0,118070.0,0.234466]
[1752243193969,1.3197338,118080.0,118070.0,0.0651]
[1752243194664,1.38048512,118080.0,118070.0,0.0651]
[1752243196165,1.38048512,118080.0,118070.0,0.234466]
[1752243196166,0.77112512,118080.0,118070.0,0.234466]
[1752243196364,0.002,118090.0,118080.0,0.1693517]
[1752243196566,0.002,118090.0,118080.0,1.1335738]
[1752243196865,0.002,118090.0,118080.0,1.2018317]
[1752243197266,0.1713373,118090.0,118080.0,1.2018317]
[1752243197469,0.7123594,118090.0,118080.0,0.2317517]
[1752243197870,0.7123594,118090.0,118080.0,0.0624]
[1752243198268,1.0731594,118090.0,118080.0,0.0624]
[1752243198466,1.0731594,118090.0,118080.0,0.03]
[1752243198668,1.1064594,118090.0,118080.0,0.03]
[1752243198964,1.1384594,118090.0,118080.0,0.03]
[1752243199272,1.19929699,118090.0,118080.0,0.031]
[1752243199471,1.19929699,118090.0,118080.0,0.001]
[1752243199769,0.1693517,118080.0,118070.0,0.0645]
[1752243199965,1.3196138,118080.0,118070.0,0.0321]
[1752243200173,1.41147102,118080.0,118070.0,0.0321]
[1752243200367,1.3506138,118080.0,118070.0,0.0321]
[1752243200567,0.80223102,118080.0,118070.0,0.0321]
[1752243200767,0.83423102,118080.0,118070.0,0.0321]
[1752243201371,0.83423102,118080.0,118070.0,0.0633]
[1752243201572,0.83423102,118080.0,118070.0,0.0321]
[1752243201769,1.19503102,118080.0,118070.0,0.0021]
[1752243202577,1.1341738,118080.0,118070.0,0.0021]
[1752243203572,1.21009451,118080.0,118070.0,0.0021]
[1752243203973,1.21009451,118080.0,118070.0,0.0001]
[1752243205770,1.44700339,118080.0,118070.0,0.0001]
[1752243208077,2.05604339,118080.0,118070.0,0.0001]
[1752243208269,1.43194338,118080.0,118070.0,0.0001]
[1752243208476,1.87155938,118080.0,118070.0,0.0001]
[1752243209073,1.26255938,118080.0,118070.0,0.0001]
[1752243209276,1.87159938,118080.0,118070.0,0.0001]
[1752243209471,1.87155938,118080.0,118070.0,0.0001]
[1752243210181,1.81069868,118080.0,118070.0,0.0001]
[1752243210383,1.13869868,118080.0,118070.0,0.0001]
[1752243210577,1.13869868,118080.0,118070.0,0.0631]
[1752243210578,1.80855851,118080.0,118070.0,0.0631]
[1752243210776,1.38689868,118080.0,118070.0,0.0631]
[1752243212182,1.82361939,118080.0,118070.0,0.0631]
[1752243212574,0.85381939,118080.0,118070.0,0.0631]
[1752243212778,1.82357939,118080.0,118070.0,0.0631]
[1752243213484,1.85427939,118080.0,118070.0,0.0631]
[1752243214181,0.1693947,118050.0,118040.0,0.36249427]
[1752243214382,1.3193368,118050.0,118040.0,0.39379427]
[1752243214680,1.3193368,118050.0,118040.0,0.03299427]
[1752243215585,1.3193368,118050.0,118040.0,0.06469427]
[1752243215787,1.3193368,118050.0,118040.0,0.06769427]
[1752243216787,1.3193368,118050.0,118040.0,0.07269427]
[1752243217584,1.32785852,118050.0,118040.0,0.07269427]
[1752243218185,0.78683642,118050.0,118040.0,0.07269427]
[1752243218390,1.32785852,118050.0,118040.0,0.07269427]
[1752243218587,0.17791642,118050.0,118040.0,0.24210327]
[1752243218792,0.7782347,118050.0,118040.0,0.60290327]
[1752243219386,0.1693947,118050.0,118040.0,0.60290327]
[1752243219695,0.7781947,118050.0,118040.0,0.60290327]
[1752243220197,0.7781947,118050.0,118040.0,0.43349427]
[1752243220389,0.1693947,118050.0,118040.0,0.60290327]
[1752243220590,0.7781947,118050.0,118040.0,0.60290327]
[1752243220991,1.3192168,118050.0,118040.0,0.43349427]
[1752243221192,1.3192168,118050.0,118040.0,0.07269427]
[1752243224092,1.3191768,118050.0,118040.0,0.07269427]
[1752243224788,1.6799768,118050.0,118040.0,0.00969427]
[1752243224988,2.2834989,118050.0,118040.0,0.00969427]
[1752243225187,2.34440178,118050.0,118040.0,0.00969427]
[1752243225495,1.7424768,118050.0,118040.0,0.00969427]
[1752243225989,1.1337168,118050.0,118040.0,0.00969427]
[1752243226196,1.0712168,118050.0,118040.0,0.04179427]
[1752243226397,1.6798968,118050.0,118040.0,0.07459427]
[1752243227394,1.0712168,118050.0,118040.0,0.07459427]
[1752243227600,0.59109758,118050.0,118040.0,0.24400337]
[1752243227899,1.19977758,118050.0,118040.0,0.24400337]
[1752243228894,0.83897758,118050.0,118040.0,0.24400337]
[1752243229096,0.83897758,118050.0,118040.0,0.07459427]
[1752243229397,1.3190968,118050.0,118040.0,0.07459427]
[1752243229600,1.6798968,118050.0,118040.0,0.07459427]
[1752243229792,1.6798968,118050.0,118040.0,0.04179427]
[1752243229992,1.7450968,118050.0,118040.0,0.04179427]
[1752243231092,1.7130968,118050.0,118040.0,0.04179427]
[1752243231297,1.7130968,118050.0,118040.0,0.07469427]
[1752243232098,1.6798968,118050.0,118040.0,0.24410327]
[1752243232394,1.3189768,118050.0,118040.0,0.07469427]
[1752243232599,1.3189768,118050.0,118040.0,0.24410327]
[1752243232993,1.3798664,118050.0,118040.0,0.24410327]
[1752243233188,0.7713064,118050.0,118040.0,0.24410327]
[1752243233389,0.7779147,118050.0,118040.0,0.60490327]
[1752243233794,0.1693947,118050.0,118040.0,0.60490327]
[1752243233991,0.7779147,118050.0,118040.0,0.60490327]
[1752243234501,0.2302843,118050.0,118040.0,0.62109751]
[1752243234801,0.9049168,118060.0,118050.0,0.1693947]
[1752243235001,0.2964368,118060.0,118050.0,0.2329947]
[1752243235301,0.9049168,118060.0,118050.0,0.2329947]
[1752243235502,0.9049168,118060.0,118050.0,0.5937947]
[1752243235701,0.2540886,118060.0,118050.0,0.5937947]
[1752243235892,0.8625686,118060.0,118050.0,0.5937947]
[1752243236091,0.8202204,118060.0,118050.0,0.5957947]
[1752243236291,0.2117404,118060.0,118050.0,0.5957947]
[1752243237000,0.2117404,118060.0,118050.0,0.5987947]
[1752243237605,0.2726076,118070.0,118060.0,0.1693803]
[1752243237803,0.2726076,118070.0,118060.0,0.5941803]
[1752243237999,0.211718,118070.0,118060.0,0.5941803]
[1752243238600,0.32156688,118080.0,118070.0,0.169366]
[1752243238801,0.32156688,118080.0,118070.0,0.60823155]
[1752243239196,0.32156688,118080.0,118070.0,0.43886555]
[1752243239402,0.92988688,118080.0,118070.0,0.43886555]
[1752243240408,0.99077648,118080.0,118070.0,0.43886555]
[1752243240606,0.99077648,118080.0,118070.0,0.07806555]
[1752243240807,1.89259858,118080.0,118070.0,0.01616555]
[1752243241103,0.1693946,118050.0,118040.0,0.37868851]
[1752243241307,1.3186967,118050.0,118040.0,0.40908851]
[1752243241509,1.37960753,118050.0,118040.0,0.01788851]
[1752243241807,1.44460753,118050.0,118040.0,0.01788851]
[1752243242307,2.34642963,118050.0,118040.0,7e-08]
[1752243242507,2.4549428,118050.0,118040.0,7e-08]
[1752243242704,0.5410221,118030.0,118000.0,0.36249484]
[1752243243007,0.7104741,118010.0,118000.0,0.3724303]
[1752243243206,0.7104741,118010.0,118000.0,0.4056303]
[1752243243407,0.7104741,118010.0,118000.0,0.39569484]
[1752243243704,0.7104741,118010.0,118000.0,0.40563099]
[1752243243909,0.169452,118010.0,118000.0,0.41063099]
[1752243244111,0.169452,118010.0,118000.0,0.44173099]
[1752243244308,0.23782779,118010.0,118000.0,0.61119729]
[1752243244507,0.170452,118010.0,118000.0,0.61419729]
[1752243244806,0.170452,118010.0,118000.0,0.43479484]
[1752243245007,0.170452,118010.0,118000.0,0.60426114]
[1752243245310,0.170452,118010.0,118000.0,0.43479484]
[1752243245611,0.170452,118010.0,118000.0,0.60426114]
[1752243245805,0.170452,118010.0,118000.0,0.43479484]
[1752243246111,0.170452,118010.0,118000.0,0.43879484]
[1752243247110,0.778612,118010.0,118000.0,0.43879484]
[1752243247907,1.3196341,118010.0,118000.0,0.43879484]
[1752243248108,1.3517341,118010.0,118000.0,0.43879484]
[1752243248306,0.7435741,118010.0,118000.0,0.43879484]
[1752243248502,1.3516941,118010.0,118000.0,0.43879484]
[1752243248707,0.202552,118010.0,118000.0,0.43879484]
[1752243248912,0.778612,118010.0,118000.0,0.60826114]
[1752243249114,0.778612,118010.0,118000.0,0.43879484]
[1752243249513,0.778612,118010.0,118000.0,0.60826114]
[1752243249717,0.001,118010.0,118000.0,1.17201711]
[1752243249912,0.170452,118010.0,118000.0,1.17201711]
[1752243250611,0.170452,118010.0,118000.0,0.63099501]
[1752243251615,0.170452,118010.0,118000.0,0.66120875]
[1752243253018,0.170452,118010.0,118000.0,0.60826114]
[1752243254621,0.0423559,118030.0,118020.0,0.1694376]
[1752243254823,0.23035504,118030.0,118020.0,1.1382776]
[1752243255018,0.1694289,118030.0,118020.0,1.2023776]
[1752243255418,0.1694289,118030.0,118020.0,1.5631776]
[1752243255722,0.27270024,118040.0,118030.0,0.1694233]
[1752243256013,0.2117741,118040.0,118030.0,0.5943233]
[1752243256219,0.31702072,118050.0,118040.0,0.1694089]
[1752243256414,0.31702072,118050.0,118040.0,0.0641]
[1752243256813,0.31702072,118050.0,118040.0,0.2335089]
[1752243257211,0.31702072,118050.0,118040.0,0.5943089]
[1752243257611,0.27467002,118050.0,118040.0,1.2022689]
[1752243257816,0.2137561,118050.0,118040.0,1.2022689]
[1752243258015,0.002,118050.0,118040.0,1.2022689]
[1752243258221,0.1713946,118050.0,118040.0,1.2022689]
[1752243258726,0.002,118050.0,118040.0,1.2022689]
[1752243258912,0.1713946,118050.0,118040.0,1.2022689]
[1752243259315,0.002,118050.0,118040.0,1.2042689]
[1752243259719,0.002,118050.0,118040.0,1.745291]
[1752243259922,0.002,118050.0,118040.0,1.747291]
[1752243260125,0.002,118050.0,118040.0,1.916715]
[1752243260315,0.1713946,118050.0,118040.0,1.3756929]
[1752243261125,0.1713946,118050.0,118040.0,1.3766929]
[1752243261321,0.002,118050.0,118040.0,1.3766929]
[1752243261521,0.1713946,118050.0,118040.0,1.2072689]
[1752243261820,0.1713946,118050.0,118040.0,1.27464021]
[1752243262927,0.002,118050.0,118040.0,1.27464021]
[1752243263223,0.002,118050.0,118040.0,1.81566231]
[1752243263523,0.002,118050.0,118040.0,1.81546231]
[1752243264117,0.1713946,118050.0,118040.0,1.81546231]
[1752243264424,0.002,118050.0,118040.0,1.81534231]
[1752243264627,0.1713946,118050.0,118040.0,1.81534231]
[1752243265722,0.1713946,118050.0,118040.0,1.20770231]
[1752243265919,0.7124167,118050.0,118040.0,0.4299]
[1752243266225,0.7124167,118050.0,118040.0,0.3658]
[1752243266526,0.2363946,118050.0,118040.0,0.3658]
[1752243266824,0.29730852,118050.0,118040.0,0.3658]
[1752243267418,0.29730852,118050.0,118040.0,0.3647]
[1752243268022,0.29730852,118050.0,118040.0,0.3607]
[1752243268222,0.83833062,118050.0,118040.0,0.3627]
[1752243270614,0.83833062,118050.0,118040.0,0.002]
[1752243270814,0.12791392,118050.0,118040.0,0.5322089]
[1752243271015,0.002,118050.0,118040.0,1.105131]
[1752243271218,0.002,118050.0,118040.0,0.5942089]
[1752243271419,0.7124167,118050.0,118040.0,1.2016089]
[1752243271620,0.7124167,118050.0,118040.0,0.4248]
[1752243271825,0.7456167,118050.0,118040.0,0.3947]
[1752243272119,0.7757167,118050.0,118040.0,0.002]
[1752243273121,0.29560852,118050.0,118040.0,0.1714089]
[1752243273321,0.29560852,118050.0,118040.0,0.002]
[1752243273824,0.2346946,118050.0,118040.0,0.002]
[1752243274327,0.7757167,118050.0,118040.0,0.002]
[1752243275425,0.2346946,118050.0,118040.0,0.002]
[1752243280128,0.2045946,118050.0,118040.0,0.1714089]
[1752243280329,0.2045946,118050.0,118040.0,0.0679]
[1752243280631,0.2045946,118050.0,118040.0,0.0353]
[1752243280832,0.2364946,118050.0,118040.0,0.0353]
[1752243283831,0.7775167,118050.0,118040.0,0.0353]
[1752243284726,0.83843062,118050.0,118040.0,0.0353]
[1752243284932,0.7775167,118050.0,118040.0,0.0353]
[1752243285126,0.83843062,118050.0,118040.0,0.0353]
[1752243287435,0.26550852,118050.0,118040.0,0.427]
[1752243288035,0.26550852,118050.0,118040.0,0.5964089]
[1752243288036,0.1713945,118050.0,118040.0,0.5964089]
[1752243288223,0.1713945,118050.0,118040.0,0.427]
[1752243288423,0.1713945,118050.0,118040.0,1.03392]
[1752243288629,0.1713945,118050.0,118040.0,1.03388]
[1752243288836,0.1713945,118050.0,118040.0,0.427]
[1752243289035,0.1713945,118050.0,118040.0,1.03388]
[1752243289531,0.7124166,118050.0,118040.0,1.00298]
[1752243289735,0.7440166,118050.0,118040.0,0.3961]
[1752243290124,0.7754166,118050.0,118040.0,0.3961]
[1752243290732,0.1713945,118050.0,118040.0,0.3961]
[1752243290935,0.1713945,118050.0,118040.0,0.4283]
[1752243291831,0.1713945,118050.0,118040.0,0.5977089]
[1752243292234,0.1713945,118050.0,118040.0,0.4283]
[1752243292536,0.1713945,118050.0,118040.0,0.5977089]
[1752243293135,0.002,118050.0,118040.0,0.5977089]
[1752243293331,0.002,118050.0,118040.0,1.308155]
[1752243293638,0.002,118050.0,118040.0,1.138731]
[1752243294234,0.1713946,118050.0,118040.0,0.5977089]
[1752243294535,0.1713946,118050.0,118040.0,1.03498]
[1752243294831,0.1713946,118050.0,118040.0,1.2043889]
[1752243296434,0.23230852,118050.0,118040.0,1.2043889]
[1752243297127,0.1713946,118050.0,118040.0,1.2043889]
[1752243299428,0.7124167,118050.0,118040.0,0.4283]
[1752243299738,0.7124167,118050.0,118040.0,0.3961]
[1752243300038,0.7448167,118050.0,118040.0,0.3961]
[1752243300839,0.2037946,118050.0,118040.0,0.5656089]
[1752243301043,0.7778746,118050.0,118040.0,0.5656089]
[1752243301243,0.7778746,118050.0,118040.0,0.5962089]
[1752243302043,0.8100746,118050.0,118040.0,0.4268]
[1752243303444,0.8100746,118050.0,118040.0,0.5962089]
[1752243303841,0.8100746,118050.0,118040.0,0.4268]
[1752243304042,0.8100746,118050.0,118040.0,0.5962089]
[1752243304242,0.8100746,118050.0,118040.0,0.4268]
[1752243304440,0.871033,118050.0,118040.0,0.4268]
[1752243305252,1.4120551,118050.0,118040.0,0.4268]
[1752243305453,1.3510967,118050.0,118040.0,0.4268]
[1752243305852,1.3510967,118050.0,118040.0,0.5962089]
[1752243306248,1.3510967,118050.0,118040.0,0.4268]
[1752243306448,1.3510967,118050.0,118040.0,0.5962089]
[1752243306650,0.8100746,118050.0,118040.0,0.5962089]
[1752243306853,0.8100746,118050.0,118040.0,0.4268]
[1752243307952,0.2035946,118050.0,118040.0,0.4268]
[1752243308153,1.4118151,118050.0,118040.0,0.4268]
[1752243309244,1.4117751,118050.0,118040.0,0.4268]
[1752243312655,0.8055751,118050.0,118040.0,0.4268]
[1752243312857,1.33137959,118050.0,118040.0,0.4268]
[1752243313058,0.232353,118050.0,118040.0,0.4268]
[1752243313255,0.69305959,118050.0,118040.0,0.4268]
[1752243313654,0.72625959,118050.0,118040.0,0.4268]
[1752243313854,0.72625959,118050.0,118040.0,0.5962089]
[1752243316664,0.72625959,118050.0,118040.0,0.4268]
[1752243316864,0.72625959,118050.0,118040.0,0.3962]
[1752243317159,0.1694376,118020.0,118010.0,1.00519422]
[1752243317361,0.63014419,118020.0,118010.0,1.04347231]
[1752243317663,0.63014419,118020.0,118010.0,1.21292431]
[1752243318265,0.63114419,118020.0,118010.0,1.05047231]
[1752243318459,0.63114419,118020.0,118010.0,0.4016]
[1752243318766,0.69638969,118020.0,118010.0,1.00744]
[1752243318962,0.70470202,118020.0,118010.0,0.4016]
[1752243319158,0.70470202,118020.0,118010.0,0.3708]
[1752243319863,0.76566042,118020.0,118010.0,0.3708]
[1752243320059,0.77223447,118020.0,118010.0,0.3708]
[1752243320264,0.77223447,118020.0,118010.0,0.540252]
[1752243320566,0.77223447,118020.0,118010.0,0.4031]
[1752243320767,0.77223447,118020.0,118010.0,0.572652]
[1752243321066,0.23911555,118020.0,118010.0,0.572652]
[1752243321266,0.23911555,118020.0,118010.0,0.61354649]
[1752243321561,0.1715831,118020.0,118010.0,1.06595859]
[1752243322068,0.1715831,118020.0,118010.0,0.605252]
[1752243322766,0.0021455,118020.0,118010.0,1.06595859]
[1752243323568,0.1715831,118020.0,118010.0,1.06595859]
[1752243324064,0.1715831,118020.0,118010.0,0.605252]
[1752243324270,0.1715831,118020.0,118010.0,1.06595859]
[1752243324468,0.1715831,118020.0,118010.0,1.07434743]
[1752243325668,0.1715831,118020.0,118010.0,0.61364084]
[1752243326868,0.1715831,118020.0,118010.0,0.605252]
[1752243327767,0.63228969,118020.0,118010.0,0.075]
[1752243327971,0.70125799,118020.0,118010.0,0.0424]
[1752243328165,0.76235799,118020.0,118010.0,0.0424]
[1752243328366,0.76235799,118020.0,118010.0,0.0101]
[1752243328868,0.169452,118010.0,118000.0,0.36249484]
[1752243329070,1.94883318,118010.0,117980.0,0.3914]
[1752243329261,0.1694951,117980.0,117970.0,0.41392191]
[1752243329462,0.63020169,117980.0,117970.0,0.5913095]
[1752243329773,0.7749682,117990.0,117980.0,0.1683496]
[1752243329966,0.1694882,117990.0,117980.0,0.5925496]
[1752243330168,0.63019479,117990.0,117980.0,0.3938]
[1752243330371,0.63019479,117990.0,117980.0,0.3608]
[1752243330372,0.69339479,117990.0,117980.0,0.3608]
[1752243330869,0.77322594,117990.0,117980.0,0.3608]
[1752243331174,0.77322594,117990.0,117980.0,0.5342951]
[1752243331562,0.77322594,117990.0,117980.0,0.5995951]
[1752243332067,0.77322594,117990.0,117980.0,0.0693]
[1752243332270,0.77322594,117990.0,117920.0,0.4819405]
[1752243332271,2.36051548,117990.0,117920.0,0.4819405]
[1752243332571,0.3608,117930.0,117920.0,0.1580516]
[1752243332768,0.3608,117930.0,117920.0,0.2428434]
[1752243332970,0.5303669,117930.0,117920.0,0.0308699]
[1752243333275,0.5303669,117930.0,117920.0,0.01815652]
[1752243333470,0.3608,117930.0,117920.0,0.18873782]
[1752243333678,0.5303669,117930.0,117920.0,1.39965782]
[1752243334175,0.5303669,117930.0,117920.0,1.23007652]
[1752243334374,0.5333669,117930.0,117920.0,1.23107652]
[1752243334568,1.14120909,117930.0,117920.0,1.23107652]
[1752243334765,1.20490909,117930.0,117920.0,1.23107652]
[1752243334966,1.56570909,117930.0,117920.0,1.23107652]
[1752243335370,1.56570909,117930.0,117920.0,1.23007652]
[1752243335575,1.56570909,117930.0,117920.0,1.23107652]
[1752243337374,1.56570909,117930.0,117920.0,1.40065782]
[1752243337575,0.43110445,117930.0,117920.0,1.40065782]
[1752243337771,0.60067135,117930.0,117920.0,1.29567652]
[1752243337972,0.60067135,117930.0,117920.0,1.46525782]
[1752243338168,0.43110445,117930.0,117920.0,1.46525782]
[1752243338871,0.003,117930.0,117920.0,1.46525782]
[1752243339070,0.3608,117950.0,117940.0,0.1695526]
[1752243339371,0.5303383,117950.0,117940.0,1.3804726]
[1752243339672,0.5303383,117950.0,117940.0,1.4439726]
[1752243340272,0.5313383,117950.0,117940.0,1.4439726]
[1752243340767,0.5343383,117950.0,117940.0,1.4449726]
[1752243342471,0.3648,117950.0,117940.0,2.0018699]
[1752243343179,0.3648,117950.0,117940.0,1.46133216]
[1752243343479,0.5343382,117950.0,117940.0,1.46133216]
[1752243345676,0.3648,117950.0,117940.0,1.46133216]
[1752243346172,0.5343382,117950.0,117940.0,1.46133216]
[1752243346378,1.07487594,117950.0,117940.0,0.85565216]
[1752243346881,1.07487594,117950.0,117940.0,0.68609956]
[1752243347178,1.10587594,117950.0,117940.0,0.01735956]
[1752243347381,1.13907594,117950.0,117940.0,0.62259956]
[1752243347881,1.13907594,117950.0,117940.0,0.01735956]
[1752243348277,0.5985382,117950.0,117940.0,0.01735956]
[1752243348579,1.13907594,117950.0,117940.0,0.001]
[1752243351078,1.13907594,117950.0,117940.0,0.1705526]
[1752243351278,0.5653382,117950.0,117940.0,0.001]
[1752243351479,1.10587594,117950.0,117940.0,0.1705526]
[1752243351680,1.13847594,117950.0,117940.0,0.001]
[1752243352584,1.13847594,117950.0,117940.0,0.1705526]
[1752243353782,0.4284,117950.0,117940.0,0.1705526]
[1752243353988,0.5343382,117950.0,117940.0,0.2010526]
[1752243354176,0.5343382,117950.0,117940.0,0.2313526]
[1752243356981,0.004,117950.0,117940.0,1.13259034]
[1752243357177,0.1735382,117950.0,117940.0,1.13259034]
[1752243357381,0.004,117950.0,117940.0,0.5920526]
[1752243357582,0.004,117950.0,117940.0,0.2312526]
[1752243357789,0.004,117950.0,117940.0,0.5920526]
[1752243358082,0.004,117950.0,117940.0,1.13259034]
[1752243358484,0.1735382,117950.0,117940.0,1.13259034]
[1752243358789,0.004,117950.0,117940.0,1.13259034]
[1752243359385,0.004,117950.0,117940.0,0.5920526]
[1752243359689,0.004,117950.0,117940.0,1.13259034]
[1752243360389,0.004,117950.0,117940.0,0.5920526]
[1752243360686,0.1735382,117950.0,117940.0,0.5920526]
[1752243360889,0.1735382,117950.0,117940.0,0.0617]
[1752243361092,1.07487594,117950.0,117940.0,1.4409326]
[1752243361288,1.07487594,117950.0,117940.0,1.45362832]
[1752243361489,0.1735382,117950.0,117940.0,1.4409326]
[1752243361690,0.5665382,117950.0,117940.0,1.4409326]
[1752243362789,0.5665382,117950.0,117940.0,1.4106326]
[1752243362992,0.5665382,117950.0,117940.0,1.3801326]
[1752243363289,1.13817594,117950.0,117940.0,1.3801326]
[1752243365597,0.5976382,117950.0,117940.0,1.3801326]
[1752243365794,0.0673,117950.0,117940.0,1.3801326]
[1752243365997,0.2368382,117950.0,117940.0,1.4114326]
[1752243366296,0.2368382,117950.0,117940.0,1.4444326]
[1752243366597,0.1735382,117950.0,117940.0,1.4444326]
[1752243367296,0.2041382,117950.0,117940.0,1.4444326]
[1752243367496,0.0346,117950.0,117940.0,1.4444326]
[1752243367698,0.004,117950.0,117940.0,1.4444326]
[1752243368395,0.004,117950.0,117940.0,1.98497034]
[1752243368892,0.004,117950.0,117940.0,2.34577034]
[1752243371498,0.004,117950.0,117940.0,1.8052326]
[1752243371699,0.004,117950.0,117940.0,2.34577034]
[1752243373994,0.004,117950.0,117940.0,2.3557103]
[1752243374500,0.1735382,117950.0,117940.0,1.45437256]
[1752243374898,0.1735382,117950.0,117940.0,1.4444326]
[1752243375094,0.74517594,117950.0,117940.0,0.2017526]
[1752243375392,0.74517594,117950.0,117940.0,0.82222935]
[1752243375393,0.77827594,117950.0,117940.0,0.82222935]
[1752243375597,0.5985382,117950.0,117940.0,0.82222935]
[1752243376001,1.13907594,117950.0,117940.0,0.01701675]
[1752243376595,1.13907594,117950.0,117940.0,0.0009]
[1752243377304,1.1402415,117950.0,117940.0,0.0009]
[1752243379000,1.14019266,117950.0,117940.0,0.0009]
[1752243379598,1.20115106,117950.0,117940.0,0.0009]
[1752243379803,1.14019266,117950.0,117940.0,0.0009]
[1752243380003,1.20115106,117950.0,117940.0,0.0009]
[1752243380504,1.8502984,117950.0,117940.0,0.0009]
[1752243380801,1.30976066,117950.0,117940.0,0.0009]
[1752243381004,1.30971182,117950.0,117940.0,0.0009]
[1752243381305,1.37067022,117950.0,117940.0,0.0009]
[1752243383004,1.30971182,117950.0,117940.0,0.0009]
[1752243383699,1.14014382,117950.0,117940.0,0.0009]
[1752243383900,1.14009498,117950.0,117940.0,0.0009]
[1752243386302,1.20105338,117950.0,117940.0,0.0009]
[1752243387106,1.74417498,117950.0,117940.0,0.0009]
[1752243387307,1.14009498,117950.0,117940.0,0.0009]
[1752243387501,1.74413498,117950.0,117940.0,0.0009]
[1752243389705,1.74413498,117950.0,117940.0,0.0008]
[1752243391014,0.59955724,117950.0,117940.0,0.1703526]
[1752243391307,1.20347724,117950.0,117940.0,0.1703526]
[1752243392012,0.59955724,117950.0,117940.0,0.1703526]
[1752243392410,0.59955724,117950.0,117940.0,0.1704526]
[1752243393012,1.14009498,117950.0,117940.0,0.0009]
[1752243395616,1.20105338,117950.0,117940.0,0.0009]
[1752243399319,1.74377498,117950.0,117940.0,0.0009]
[1752243399910,1.74373498,117950.0,117940.0,0.0009]
[1752243400112,1.74373498,117950.0,117940.0,0.1704526]
[1752243400310,1.74373498,117950.0,117940.0,0.2026526]
[1752243400518,1.74373498,117950.0,117940.0,0.0331]
[1752243400920,0.53535724,117950.0,117940.0,0.2026526]
[1752243401118,0.36581904,117950.0,117940.0,0.2337526]
[1752243401319,0.53535724,117950.0,117940.0,0.2337526]
[1752243401724,0.00501904,117950.0,117940.0,1.98149034]
[1752243401918,0.00501904,117950.0,117940.0,2.3585444]
[1752243402313,0.17455724,117950.0,117940.0,2.3585444]
[1752243402722,0.00501904,117950.0,117940.0,1.81800666]
[1752243403621,0.00501904,117950.0,117940.0,2.3585444]
[1752243404527,0.17455724,117950.0,117940.0,2.3585444]
[1752243405221,0.00501904,117950.0,117940.0,2.3585444]
[1752243405725,0.17455724,117950.0,117940.0,2.3585444]
[1752243407025,0.00501904,117950.0,117940.0,2.3585444]
[1752243407225,0.17455734,117950.0,117940.0,2.3585444]
[1752243407727,0.00501904,117950.0,117940.0,2.3585444]
[1752243408727,0.1715097,117970.0,117960.0,0.1695239]
[1752243408928,0.002,117970.0,117960.0,1.91658164]
[1752243409128,0.002,117970.0,117960.0,2.34318164]
[1752243410027,0.002,117970.0,117960.0,2.35177247]
[1752243410427,0.005,117970.0,117960.0,2.35177247]
[1752243410823,0.3608,117990.0,117980.0,0.1694952]
[1752243411025,0.3608,117990.0,117980.0,1.93224779]
[1752243411225,0.3608,117990.0,117980.0,1.99564779]
[1752243411621,0.5302808,117990.0,117980.0,1.99564779]
[1752243412027,0.5302808,117990.0,117980.0,1.99164779]
[1752243412231,0.3608,117990.0,117980.0,1.45111005]
[1752243412930,0.3608,117990.0,117980.0,1.45211005]
[1752243413129,0.3608,117990.0,117980.0,1.99264779]
[1752243414933,0.5302808,117990.0,117980.0,1.99264779]
[1752243415122,0.5302808,117990.0,117980.0,1.45211005]
[1752243415327,0.3608,117990.0,117980.0,1.45211005]
[1752243415529,0.5302808,117990.0,117980.0,1.45211005]
[1752243415728,0.5302808,117990.0,117980.0,1.99264779]